bitfinex-derivatives/quotes_ETHF0:USTF0_20250928
["timestamp","ask_amount","ask_price","bid_price","bid_amount"]
[1759101946725,1.56911011,4126.7,4126.6,0.8788375]
[1759101947430,1.56911011,4126.7,4126.6,1.3148375]
[1759101947822,0.00221011,4126.7,4126.6,1.9753375]
[1759101948226,1.11601011,4126.7,4126.6,1.9753375]
[1759101951436,1.56911011,4126.7,4126.6,1.9753375]
[1759101953242,1.11601011,4126.7,4126.6,1.9753375]
[1759101953636,1.56911011,4126.7,4126.6,1.9753375]
[1759101954140,1.11191011,4126.7,4126.6,1.9753375]
[1759101954442,1.53791011,4126.7,4126.6,1.3148375]
[1759101954642,1.53791011,4126.7,4126.6,1.9483375]
[1759101956345,1.53791011,4126.7,4126.6,1.3148375]
[1759101959445,0.00221011,4126.7,4126.6,1.9483375]
[1759101959939,0.00221011,4126.7,4126.6,2.1973375]
[1759101962642,19.1878,4127.5,4127.2,1.5188]
[1759101962643,1.1306,4127.3,4127.2,1.5188]
[1759101962837,1.1306,4127.3,4127.2,5.16254]
[1759101963248,1.5566,4127.3,4127.2,5.16254]
[1759101963648,1.55854767,4127.3,4127.2,5.16254]
[1759101964039,1.55854767,4127.3,4127.2,4.52904]
[1759101966453,2.04911975,4127.3,4127.2,4.52904]
[1759101966651,0.8784,4126.8,4126.7,3.2078]
[1759101966846,3.31102153,4126.8,4126.7,3.2078]
[1759101967155,8.31102153,4126.8,4126.7,3.2078]
[1759101967641,8.31102153,4126.8,4126.6,0.0022375]
[1759101967956,2.04717208,4126.7,4126.6,0.4382375]
[1759101968852,2.04717208,4126.7,4126.6,0.8827375]
[1759101969350,2.04717208,4126.7,4126.6,1.9570375]
[1759101969552,2.04717208,4126.7,4126.6,1.3235375]
[1759101973256,1.62117208,4126.7,4126.6,1.9846375]
[1759101973458,0.49057208,4126.7,4126.6,1.9846375]
[1759101973949,1.57377208,4126.7,4126.6,1.9846375]
[1759101974342,1.98867208,4126.7,4126.6,0.8827375]
[1759101974748,1.98867208,4126.7,4126.6,1.9677375]
[1759101975450,1.13518586,4126.7,4126.6,1.9677375]
[1759101975653,1.08514767,4127.3,4127.2,1.92904]
[1759101975848,1.57680876,4127.3,4127.2,1.92904]
[1759101976858,0.49360876,4127.3,4127.2,1.92904]
[1759101977154,0.00194767,4127.3,4127.2,8.19288945]
[1759101977350,0.00194767,4127.3,4127.2,7.17804]
[1759101977545,0.00194767,4127.3,4127.2,7.94388945]
[1759101977747,0.00194767,4127.3,4127.2,8.19288945]
[1759101979251,0.00194767,4127.3,4127.2,7.94388945]
[1759101979452,0.00194767,4127.3,4127.2,8.19288945]
[1759101980660,0.8925,4128.0,4127.9,0.43586]
[1759101980952,0.49097267,4128.0,4127.9,5.13676]
[1759101981155,1.13447267,4128.0,4127.9,5.13676]
[1759101981353,2.25267267,4128.0,4127.9,5.13676]
[1759101981658,2.25492398,4128.0,4127.9,4.47566]
[1759101981857,2.25492398,4128.0,4127.9,5.13676]
[1759101982449,1.99132398,4128.0,4127.9,5.13676]
[1759101982955,1.08545131,4128.0,4127.9,5.13676]
[1759101983858,0.00225131,4128.0,4127.9,5.13676]
[1759101984452,1.0916,4128.3,4128.2,1.94653]
[1759101984650,1.5133,4128.3,4128.2,1.94653]
[1759101985258,0.6642,4128.5,4128.4,1.94651]
[1759101985557,1.09397238,4128.5,4128.4,5.15431]
[1759101985755,1.58413039,4128.5,4128.4,5.15431]
[1759101985950,1.52000869,4128.5,4128.4,5.15431]
[1759101986264,1.52000869,4128.5,4128.4,4.49961]
[1759101986265,2.19300435,4128.5,4128.4,4.49961]
[1759101986446,2.19300435,4128.5,4128.3,0.43581]
[1759101986652,0.2514,4128.0,4127.8,3.2078]
[1759101986956,0.2514,4128.0,4127.8,3.64367]
[1759101986957,0.8491,4127.9,4127.8,3.64367]
[1759101987857,1.5133,4127.9,4127.8,4.49967]
[1759101988461,1.5133,4127.9,4127.8,5.15437]
[1759101988658,1.5133,4127.9,4127.8,4.49967]
[1759101989259,1.5133,4127.9,4127.8,5.15437]
[1759101989753,1.5133,4127.9,4127.8,4.49967]
[1759101991756,1.5133,4127.9,4127.8,5.15437]
[1759101993656,0.249,4128.1,4128.0,0.43585]
[1759101993856,0.9132,4128.1,4128.0,1.94655]
[1759101994056,1.3406,4128.1,4128.0,1.94655]
[1759101994762,0.249,4128.1,4128.0,1.94655]
[1759101995161,1.3406,4128.1,4128.0,1.94655]
[1759101995360,1.7623,4128.1,4128.0,1.94655]
[1759101996765,0.249,4128.1,4128.0,2.19225]
[1759101996968,1.09397238,4128.5,4128.4,1.94651]
[1759101997265,1.76707238,4128.5,4128.4,1.94651]
[1759102000069,1.76707238,4128.5,4128.4,0.43581]
[1759102000269,2.25928522,4128.5,4128.4,0.43581]
[1759102000661,2.25928522,4128.5,4128.4,0.86851]
[1759102000858,2.25928522,4128.5,4128.4,1.29181]
[1759102001467,2.25928522,4128.5,4128.4,0.86851]
[1759102001862,2.25928522,4128.5,4128.4,0.43581]
[1759102002569,2.25928522,4128.5,4128.4,0.86851]
[1759102005974,0.49458522,4128.5,4128.4,1.94651]
[1759102006461,2.25928522,4128.5,4128.4,0.43581]
[1759102006661,2.25928522,4128.5,4128.4,0.86851]
[1759102006863,2.25928522,4128.5,4128.4,1.94651]
[1759102007063,2.25928522,4128.5,4128.4,1.29181]
[1759102007963,2.25928522,4128.5,4128.4,1.94651]
[1759102014873,2.00788522,4128.5,4128.4,1.94651]
[1759102015583,1.15878522,4128.5,4128.4,1.94651]
[1759102015778,0.49458522,4128.5,4128.4,1.94651]
[1759102016283,1.52718522,4128.5,4128.4,1.94651]
[1759102016873,2.17738522,4128.5,4128.4,2.19451]
[1759102017274,2.17738522,4128.5,4128.4,1.94651]
[1759102017474,2.17738522,4128.5,4128.4,2.19451]
[1759102017982,2.17738522,4128.5,4128.4,1.94651]
[1759102018282,2.17738522,4128.5,4128.4,2.19451]
[1759102018982,2.17738522,4128.5,4128.4,1.94651]
[1759102019175,2.17738522,4128.5,4128.4,1.29181]
[1759102019482,2.17738522,4128.5,4128.4,0.86851]
[1759102020486,2.17738522,4128.5,4128.4,1.91631]
[1759102021980,1.58158522,4128.5,4128.3,3.2078]
[1759102022281,1.4356,4127.9,4127.8,3.2078]
[1759102022483,0.43587,4127.8,4127.4,0.43591]
[1759102022786,1.4356,4127.4,4127.0,0.43595]
[1759102022978,1.6828,4127.0,4126.9,0.43596]
[1759102023284,1.6828,4127.0,4126.8,0.43597]
[1759102023285,2.42301284,4127.0,4126.8,0.43597]
[1759102023474,1.92781284,4126.9,4126.8,1.26617]
[1759102023677,1.92781284,4126.9,4126.8,1.90517]
[1759102024378,1.4356,4126.9,4126.8,1.90517]
[1759102025584,1.4356,4126.9,4126.8,1.26617]
[1759102025782,0.248,4127.0,4126.8,1.90517]
[1759102025978,0.248,4127.0,4126.9,1.4692]
[1759102026183,3.6446,4127.6,4127.5,0.4359]
[1759102026377,1.77296317,4127.6,4127.5,1.9051]
[1759102026685,2.17596317,4127.6,4127.5,1.9051]
[1759102027078,2.17596317,4127.6,4127.5,0.8573]
[1759102027279,1.4356,4127.4,4127.3,3.64373]
[1759102027688,2.31188173,4127.4,4127.3,3.64373]
[1759102028281,2.31188173,4127.4,4127.3,4.47393]
[1759102028790,1.4356,4127.4,4127.3,4.47393]
[1759102028986,1.4356,4127.4,4127.3,5.11293]
[1759102029781,1.0326,4127.4,4127.3,5.11293]
[1759102029984,3.2078,4128.3,4127.8,1.4692]
[1759102030182,1.0326,4128.2,4128.1,1.90504]
[1759102030382,1.4356,4128.2,4128.1,1.90504]
[1759102030685,1.4356,4128.2,4128.1,0.43584]
[1759102030979,1.4356,4127.9,4127.8,3.2078]
[1759102031179,0.8398,4127.2,4127.1,3.64375]
[1759102031387,1.4356,4127.2,4127.1,3.64375]
[1759102031781,1.4356,4127.2,4127.1,4.06515]
[1759102032488,1.4356,4127.2,4127.1,3.64375]
[1759102034185,1.4356,4127.2,4127.1,5.11125]
[1759102034782,1.4356,4127.2,4127.1,4.47235]
[1759102035490,2.31188173,4127.2,4127.1,4.47235]
[1759102038295,2.31188173,4127.2,4127.1,4.05365]
[1759102040496,2.31188173,4127.2,4127.1,5.11125]
[1759102041283,1.0326,4127.2,4127.1,5.11125]
[1759102041492,1.2567,4127.4,4127.3,1.90343]
[1759102041695,1.74861825,4127.4,4127.3,1.90343]
[1759102041992,1.2567,4127.4,4127.3,1.90343]
[1759102042185,1.6679,4127.4,4127.3,0.8286]
[1759102042391,2.1598707,4127.4,4127.3,0.8286]
[1759102044589,2.1598707,4127.4,4127.3,1.4328]
[1759102045091,2.1598707,4127.4,4127.3,0.8286]
[1759102045998,0.6395,4127.8,4127.3,2.52262]
[1759102046300,1.4681,4127.8,4127.7,1.89168]
[1759102046503,2.20841854,4127.8,4127.7,1.89168]
[1759102047593,2.64429854,4127.8,4127.6,0.43588]
[1759102047799,2.83670027,4127.7,4127.6,0.86738]
[1759102048802,2.83670027,4127.7,4127.6,1.89168]
[1759102050502,2.83670027,4127.7,4127.6,1.28748]
[1759102053502,2.83670027,4127.7,4127.6,0.86738]
[1759102053704,1.4681,4127.2,4127.1,4.49535]
[1759102053898,1.96041854,4127.2,4127.1,3.64375]
[1759102055097,1.96041854,4127.2,4127.1,4.07525]
[1759102055499,0.49231854,4127.2,4127.1,5.09955]
[1759102055799,1.13181854,4127.2,4127.1,5.09955]
[1759102055999,1.55761854,4127.2,4127.1,5.09955]
[1759102056207,1.96041854,4127.2,4127.1,4.07525]
[1759102057512,1.96041854,4127.2,4127.1,4.49535]
[1759102058201,1.96041854,4127.2,4127.1,5.09955]
[1759102060397,0.49231854,4127.2,4127.1,5.09955]
[1759102060597,0.49231854,4127.2,4127.1,5.97583173]
[1759102061106,0.248,4127.6,4127.5,1.6913]
[1759102061309,0.74059969,4127.6,4127.5,2.56758173]
[1759102062208,1.38009969,4127.6,4127.5,2.33208173]
[1759102062509,1.80589969,4127.6,4127.5,1.4558]
[1759102062704,0.49259969,4127.6,4127.5,1.4558]
[1759102063013,1.55789969,4127.6,4127.5,1.4558]
[1759102063507,1.96069969,4127.6,4127.5,0.8516]
[1759102063709,1.4681,4127.2,4127.1,3.6393]
[1759102063906,1.13209969,4127.2,4127.1,5.09955]
[1759102064210,1.96069969,4127.2,4127.1,4.49535]
[1759102065616,1.96069969,4127.2,4127.1,3.2078]
[1759102065805,1.7226,4127.0,4126.9,0.86746]
[1759102066113,2.21519969,4127.0,4126.9,1.89176]
[1759102066507,1.96069969,4127.0,4126.9,1.89176]
[1759102069008,0.49259969,4127.0,4126.9,1.89176]
[1759102069214,1.3133,4127.9,4127.8,1.4558]
[1759102069415,2.20850493,4127.9,4127.8,1.4558]
[1759102069614,2.20850493,4127.9,4127.6,3.2078]
[1759102069806,1.4681,4127.7,4127.2,0.8522]
[1759102070007,1.36868666,4127.8,4127.2,0.8522]
[1759102070008,0.6395,4127.3,4127.2,2.13974]
[1759102070309,1.7226,4127.5,4127.4,0.8516]
[1759102070506,2.21499124,4127.5,4127.4,1.4558]
[1759102071303,0.49239124,4127.5,4127.4,1.4558]
[1759102071614,0.49239124,4127.5,4127.4,2.33208173]
[1759102072210,1.55769124,4127.5,4127.4,2.33208173]
[1759102072410,1.55769124,4127.5,4127.4,1.4558]
[1759102073116,1.96049124,4127.5,4127.4,1.4558]
[1759102073413,2.21499124,4127.5,4127.4,0.8516]
[1759102074110,3.09127297,4127.5,4127.4,0.4315]
[1759102074412,2.21499124,4127.5,4127.3,0.43593]
[1759102074611,1.92449124,4127.4,4127.3,0.43593]
[1759102074909,0.4128,4127.1,4127.0,3.64376]
[1759102075218,1.92449124,4127.1,4127.0,3.64376]
[1759102076609,1.92449124,4127.1,4127.0,4.07196]
[1759102078012,1.92449124,4127.1,4127.0,3.64376]
[1759102079305,0.2374,4127.0,4126.6,0.0022375]
[1759102079615,2.44661014,4126.7,4126.6,0.0022375]
[1759102079915,2.93900138,4126.7,4126.6,0.0022375]
[1759102080214,2.93900138,4126.7,4126.6,0.4382375]
[1759102080614,1.92449124,4126.7,4126.6,1.8407375]
[1759102082021,1.92449124,4126.7,4126.6,0.8153375]
[1759102082914,1.92449124,4126.7,4126.6,0.0022375]
[1759102083515,1.92449124,4126.7,4126.6,0.4304375]
[1759102083721,1.92449124,4126.7,4126.6,0.8153375]
[1759102084609,1.92449124,4126.7,4126.6,1.4047375]
[1759102084610,0.49239124,4126.7,4126.6,1.4047375]
[1759102084810,0.49278648,4126.8,4126.7,1.24909]
[1759102085011,1.0336,4127.4,4127.3,0.86413]
[1759102085218,1.52637478,4127.4,4127.3,1.83843]
[1759102085414,2.17287478,4127.4,4127.3,1.83843]
[1759102085718,2.17287478,4127.4,4127.3,1.24903]
[1759102087219,2.17287478,4127.4,4127.3,1.83843]
[1759102087816,1.77437478,4127.4,4127.3,1.83843]
[1759102088216,2.17287478,4127.4,4127.3,1.24903]
[1759102089118,2.17287478,4127.4,4127.3,1.83843]
[1759102089325,1.77437478,4127.4,4127.3,1.83843]
[1759102089811,2.17287478,4127.4,4127.3,0.43593]
[1759102090322,1.77437478,4127.4,4127.3,1.83843]
[1759102091022,0.74077478,4127.4,4127.3,1.83843]
[1759102091215,1.77437478,4127.4,4127.3,1.83843]
[1759102091412,2.17287478,4127.4,4127.3,1.83843]
[1759102092315,0.74077478,4127.4,4127.3,1.83843]
[1759102092620,1.0118,4127.8,4127.7,1.83229]
[1759102092815,1.50453315,4127.8,4127.7,1.83229]
[1759102094319,0.61367238,4128.5,4128.4,1.24731]
[1759102094630,0.61367238,4128.5,4128.4,1.83221]
[1759102094818,1.66277238,4128.5,4128.4,0.82841]
[1759102095414,1.66277238,4128.5,4128.4,1.24731]
[1759102095623,0.00237238,4128.5,4128.4,1.83221]
[1759102095924,1.01417238,4128.5,4128.4,1.83221]
[1759102096124,1.66277238,4128.5,4128.4,1.83221]
[1759102096823,1.01417238,4128.5,4128.4,1.83221]
[1759102097621,1.66277238,4128.5,4128.4,1.24731]
[1759102098324,0.00237238,4128.5,4128.4,2.84672014]
[1759102098916,1.0118,4129.2,4129.1,1.83214]
[1759102099229,0.6113,4129.5,4129.4,0.8115]
[1759102099418,1.0118,4129.7,4129.6,1.3964]
[1759102099828,1.0134985,4129.7,4129.6,1.39877391]
[1759102100228,0.0016985,4129.7,4129.6,1.64677391]
[1759102100526,0.0016985,4129.7,4129.6,6.64677391]
[1759102102233,1.0134985,4129.7,4129.6,1.64677391]
[1759102102624,1.4115985,4129.7,4129.6,0.81387391]
[1759102103125,1.4115985,4129.7,4129.6,1.06187391]
[1759102103322,1.4115985,4129.7,4129.6,0.00237391]
[1759102103528,6.6595985,4129.7,4129.6,0.00237391]
[1759102113340,1.6595985,4129.7,4129.6,0.00237391]
[1759102113734,1.6595985,4129.7,4129.6,0.82167391]
[1759102113939,1.6595985,4129.7,4129.6,0.00237391]
[1759102115834,2.67410864,4129.7,4129.6,0.00237391]
[1759102116937,3.1544318,4129.7,4129.6,0.00237391]
[1759102117537,2.13992166,4129.7,4129.6,0.00237391]
[1759102117741,3.1544318,4129.7,4129.6,0.00237391]
[1759102118435,1.3645,4128.9,4128.8,3.64357]
[1759102118637,1.6115,4128.9,4128.8,3.64357]
[1759102119347,1.6115,4128.9,4128.8,3.64563447]
[1759102119533,0.247,4128.9,4128.8,5.03193447]
[1759102119734,1.2274,4128.9,4128.8,5.03193447]
[1759102120334,1.6115,4128.9,4128.8,5.03193447]
[1759102120641,1.6115,4128.9,4128.8,4.46493447]
[1759102121841,1.6115,4128.9,4128.8,3.20986447]
[1759102123444,2.09338717,4128.9,4128.8,3.20986447]
[1759102125339,2.09338717,4128.9,4128.8,4.02916447]
[1759102127641,3.54365731,4128.9,4128.8,3.20986447]
[1759102128447,3.54365731,4128.9,4128.8,0.00206447]
[1759102129538,11.75145731,4128.9,4128.8,0.00206447]
[1759102131244,0.2368,4128.0,4127.7,3.2078]
[1759102131545,0.9804,4127.8,4127.7,5.02998]
[1759102132443,0.9804,4127.8,4127.7,5.0330642]
[1759102133143,0.5841,4127.8,4127.7,5.0330642]
[1759102133446,0.247,4127.9,4127.8,1.3863]
[1759102133639,3.2078,4128.4,4128.3,0.8024]
[1759102133942,1.70272862,4128.4,4128.3,1.80312]
[1759102135147,2.09742862,4128.4,4128.3,0.83982]
[1759102136638,1.70272862,4128.4,4128.3,1.80312]
[1759102137247,0.72922862,4128.4,4128.3,1.80312]
[1759102138453,1.70272862,4128.4,4128.3,1.80312]
[1759102138657,2.09742862,4128.4,4128.3,1.3673]
[1759102139045,2.09742862,4128.4,4128.3,0.8024]
[1759102139247,2.09742862,4128.4,4128.3,0.404]
[1759102139447,2.09742862,4128.4,4128.3,0.8024]
[1759102139751,2.09742862,4128.4,4128.3,1.3673]
[1759102140145,2.09742862,4128.4,4128.2,0.43582]
[1759102140457,2.09742862,4128.4,4127.9,0.43586]
[1759102140458,1.6145,4128.0,4127.9,0.43586]
[1759102140751,2.73777604,4128.0,4127.9,0.43586]
[1759102141546,3.07687066,4128.0,4127.8,3.2078]
[1759102141746,1.85045947,4127.9,4127.8,3.2078]
[1759102143243,2.72673551,4127.9,4127.8,3.2078]
[1759102143446,2.72673551,4127.9,4127.8,3.6118]
[1759102143651,0.48225947,4127.9,4127.8,5.45137604]
[1759102143954,0.9735,4128.3,4128.2,1.80313]
[1759102144151,1.8503116,4128.3,4128.2,1.80313]
[1759102145744,1.8503116,4128.3,4128.2,1.23823]
[1759102146653,1.8503116,4128.3,4127.9,0.5649]
[1759102146848,2.34763604,4128.0,4127.8,3.2078]
[1759102147154,2.34763604,4128.0,4127.8,3.64367]
[1759102147155,2.0973116,4127.9,4127.8,3.64367]
[1759102147352,2.0973116,4127.9,4127.8,4.04767]
[1759102148255,2.0973116,4127.9,4127.8,3.2078]
[1759102148647,2.0973116,4127.9,4127.7,0.4389642]
[1759102148648,1.80407,4127.8,4127.7,0.0030842]
[1759102148855,2.2861816,4127.8,4127.7,0.0030842]
[1759102149049,2.2861816,4127.8,4127.7,0.4070842]
[1759102150456,2.2861816,4127.8,4127.7,0.8054842]
[1759102150457,1.8503116,4127.8,4127.7,0.8054842]
[1759102151056,1.8503116,4127.8,4127.7,1.3703842]
[1759102151057,1.4556116,4127.8,4127.7,1.3703842]
[1759102151258,0.247,4127.9,4127.8,1.23827]
[1759102151458,1.2205,4127.9,4127.8,1.80317]
[1759102152356,1.6152,4127.9,4127.8,1.80317]
[1759102152762,1.6152,4127.9,4127.8,5.01097]
[1759102153659,1.2205,4127.9,4127.8,5.01097]
[1759102154457,0.6152,4127.9,4127.8,5.01097]
[1759102154653,1.1987,4127.9,4127.8,5.01097]
[1759102154857,0.247,4127.9,4127.8,5.01097]
[1759102155856,1.1987,4127.9,4127.8,5.01097]
[1759102156364,1.68141956,4127.9,4127.8,5.01097]
[1759102156859,1.1987,4127.9,4127.8,5.01097]
[1759102157159,0.72971127,4127.9,4127.8,5.01097]
[1759102157962,1.31321127,4127.9,4127.8,5.01097]
[1759102158163,1.68141127,4127.9,4127.8,5.01097]
[1759102158659,2.07071127,4127.9,4127.8,3.2078]
[1759102158865,2.07071127,4127.9,4127.8,3.64368]
[1759102159053,2.07071127,4127.9,4127.7,0.4389642]
[1759102159259,2.69998731,4127.8,4127.7,0.8311642]
[1759102159963,2.69998731,4127.8,4127.7,0.0030842]
[1759102163570,2.69998731,4127.8,4127.7,0.3952842]
[1759102164271,2.69998731,4127.8,4127.7,0.0030842]
[1759102166578,1.82371127,4127.8,4127.7,0.3870842]
[1759102168172,1.82371127,4127.8,4127.7,0.0030842]
[1759102170679,1.82371127,4127.8,4127.7,0.3870842]
[1759102170880,2.69998731,4127.8,4127.7,0.3870842]
[1759102172686,2.69998731,4127.8,4127.7,1.3451842]
[1759102173185,1.82371127,4127.8,4127.7,1.3451842]
[1759102173375,1.43441127,4127.8,4127.7,1.3451842]
[1759102173683,1.06621127,4127.8,4127.7,1.3451842]
[1759102173983,0.48271127,4127.8,4127.7,1.3451842]
[1759102174679,1.06431127,4127.8,4127.7,1.3451842]
[1759102174879,0.48271127,4127.8,4127.7,1.3451842]
[1759102177081,1.46871127,4127.8,4127.7,1.3451842]
[1759102178886,0.5816,4128.2,4128.1,1.77794]
[1759102179092,0.5816,4128.2,4128.1,5.86201604]
[1759102182192,0.5816,4128.2,4128.1,6.10901604]
[1759102182991,0.986,4128.2,4128.1,6.10901604]
[1759102183593,1.3607,4128.2,4128.1,4.40184]
[1759102183994,1.3607,4128.2,4128.1,4.98574]
[1759102188602,1.3607,4128.2,4128.1,4.40184]
[1759102188804,1.3607,4128.2,4128.1,4.98574]
[1759102190706,0.986,4128.2,4128.1,4.98574]
[1759102191896,0.5816,4128.2,4128.1,4.98574]
[1759102192099,0.2368,4129.0,4128.9,0.43576]
[1759102192297,1.0159,4129.0,4128.9,1.19396]
[1759102192502,1.49695827,4129.0,4128.9,1.19396]
[1759102192707,2.07855827,4129.0,4128.9,1.19396]
[1759102193104,2.07855827,4129.0,4128.9,1.77786]
[1759102194114,2.07855827,4129.0,4128.9,1.19396]
[1759102196204,1.46705827,4129.0,4128.9,1.76716]
[1759102196599,2.06935827,4129.0,4128.9,1.76716]
[1759102197910,2.06935827,4129.0,4128.9,1.19396]
[1759102202008,2.06935827,4129.0,4128.9,1.76716]
[1759102203005,1.46705827,4129.0,4128.9,1.76716]
[1759102203708,0.247,4129.2,4129.1,0.43574]
[1759102203913,1.6058,4129.2,4129.1,1.79274]
[1759102204113,2.0901951,4129.2,4129.1,1.21954]
[1759102205813,2.0901951,4129.2,4129.1,1.79274]
[1759102206310,0.585,4129.4,4129.3,0.43572]
[1759102206514,1.06942967,4129.4,4129.3,1.79272]
[1759102206714,1.47372967,4129.4,4129.3,1.79272]
[1759102206918,0.48442967,4129.4,4129.3,1.79272]
[1759102207108,0.9909985,4129.7,4129.6,1.79269]
[1759102207307,1.47525038,4129.7,4129.6,1.79269]
[1759102207825,1.84475038,4129.7,4129.6,0.83039]
[1759102208115,1.84475038,4129.7,4129.6,1.79269]
[1759102209710,0.0016985,4129.7,4129.6,3.05343137]
[1759102210515,0.9893,4130.3,4130.2,1.79262]
[1759102210717,1.47319554,4130.3,4130.2,5.00042]
[1759102210919,0.9893,4130.3,4130.2,5.00042]
[1759102211416,0.99229264,4130.3,4130.2,5.00042]
[1759102211816,0.00299264,4130.3,4130.2,5.00042]
[1759102212312,0.00299264,4130.3,4130.2,5.24742]
[1759102212514,0.00299264,4130.3,4130.2,6.26116137]
[1759102215222,4.7859,4131.5,4131.4,1.2021]
[1759102215429,1.5781,4131.5,4131.4,1.2021]
[1759102215914,1.1862,4131.5,4131.4,1.2021]
[1759102216221,0.56341018,4131.5,4131.4,4.9565789]
[1759102216424,1.57131018,4131.5,4131.4,4.4118789]
[1759102216618,1.57131018,4131.5,4131.4,3.6452789]
[1759102216817,1.57131018,4131.5,4131.4,0.4374789]
[1759102217020,1.57131018,4131.5,4131.4,0.45664543]
[1759102217321,1.57131018,4131.5,4131.4,4.43104543]
[1759102217522,1.57131018,4131.5,4131.4,4.98615291]
[1759102218118,1.57131018,4131.5,4131.4,4.99655997]
[1759102218621,1.57131018,4131.5,4131.4,4.45185997]
[1759102220120,1.57131018,4131.5,4131.4,4.46226734]
[1759102221025,1.57131018,4131.5,4131.4,5.00696734]
[1759102221320,1.34791018,4131.5,4131.4,5.00696734]
[1759102221524,0.95531018,4131.5,4131.4,5.00696734]
[1759102222719,0.2234,4132.0,4131.5,0.5447]
[1759102223018,1.5687,4132.0,4131.9,0.80744]
[1759102223227,0.5608,4132.0,4131.9,1.74674]
[1759102223425,0.9527,4132.0,4131.9,1.74674]
[1759102223924,0.95563309,4132.0,4131.9,1.74674]
[1759102224122,0.95563309,4132.0,4131.9,1.79712844]
[1759102224923,0.56373309,4132.0,4131.9,1.79712844]
[1759102225323,0.00293309,4132.0,4131.9,1.79712844]
[1759102225519,0.00293309,4132.0,4131.9,5.00492844]
[1759102226723,0.93933309,4132.0,4131.9,5.00492844]
[1759102226918,0.93933309,4132.0,4131.9,5.25192844]
[1759102227124,0.00293309,4132.0,4131.9,5.25192844]
[1759102227722,0.54713309,4132.0,4131.9,5.25192844]
[1759102227922,0.93933309,4132.0,4131.9,5.25192844]
[1759102228128,0.93933309,4132.0,4131.9,5.00492844]
[1759102228335,0.93933309,4132.0,4131.9,5.25192844]
[1759102229427,0.00293309,4132.0,4131.9,5.25192844]
[1759102234029,1.55363309,4132.0,4131.9,4.06562844]
[1759102235036,1.55363309,4132.0,4131.9,4.99352844]
[1759102235231,1.55363309,4132.0,4131.9,5.24052844]
[1759102236736,0.00293309,4132.0,4131.9,5.24052844]
[1759102237336,0.54713309,4132.0,4131.9,5.24052844]
[1759102237539,0.00293309,4132.0,4131.9,5.24052844]
[1759102237741,0.93933309,4132.0,4131.9,5.24052844]
[1759102239741,1.17413309,4132.0,4131.9,4.99352844]
[1759102239937,1.17413309,4132.0,4131.9,5.24052844]
[1759102240541,0.93933309,4132.0,4131.9,5.24052844]
[1759102242146,1.42372073,4132.0,4131.9,5.24052844]
[1759102242344,0.00293309,4132.0,4131.9,5.24052844]
[1759102243138,0.00293309,4132.0,4131.9,6.25426981]
[1759102243845,0.93933309,4132.0,4131.9,5.25712844]
[1759102244040,1.55363309,4132.0,4131.9,4.32922844]
[1759102244243,2.03848332,4132.0,4131.9,4.69662844]
[1759102244444,2.03848332,4132.0,4131.9,5.25712844]
[1759102245347,2.03848332,4132.0,4131.9,5.01012844]
[1759102245548,3.05222469,4132.0,4131.9,3.25818844]
[1759102245847,1.5507,4131.5,4131.4,3.2097789]
[1759102246038,2.03555023,4131.5,4131.4,3.2097789]
[1759102246547,7.03555023,4131.5,4130.9,3.2078]
[1759102246846,1.5507,4131.0,4130.9,3.2078]
[1759102247039,2.03555023,4131.0,4130.9,3.2078]
[1759102247743,2.03555023,4131.0,4130.9,3.21091778]
[1759102247943,2.03555023,4131.0,4130.9,3.59951778]
[1759102248144,2.03555023,4131.0,4130.9,3.96691778]
[1759102248447,0.5442,4131.4,4131.3,0.756]
[1759102248646,1.42126336,4131.4,4131.3,1.3165]
[1759102249042,0.48486336,4131.4,4131.3,1.75201]
[1759102249239,1.5629,4131.7,4131.6,0.3886]
[1759102249443,0.9364,4131.1,4131.0,1.75204]
[1759102249642,0.9364,4131.1,4131.0,1.99904]
[1759102250049,1.3159,4131.1,4131.0,1.99904]
[1759102250348,1.3159,4131.1,4131.0,1.43854]
[1759102252441,1.3159,4131.1,4131.0,1.99904]
[1759102253039,1.5507,4131.0,4130.9,3.21091778]
[1759102253242,2.03534277,4131.0,4130.9,3.21091778]
[1759102255149,1.5507,4131.0,4130.9,4.52451778]
[1759102255349,1.3159,4131.0,4130.9,4.52451778]
[1759102255645,6.5384,4131.0,4130.9,0.00311778]
[1759102255847,7.022839,4131.0,4130.9,0.00311778]
[1759102256045,1.89819,4130.5,4130.4,3.2078]
[1759102256348,3.01975184,4130.5,4130.4,3.2078]
[1759102257051,3.01975184,4130.5,4130.4,3.21035587]
[1759102257447,3.50435105,4130.5,4130.4,3.21035587]
[1759102258153,3.01975184,4130.5,4130.4,3.21035587]
[1759102258355,1.7096,4130.5,4130.4,3.95185587]
[1759102258750,1.7096,4130.5,4130.4,3.58325587]
[1759102259355,1.7096,4130.5,4130.4,3.21035587]
[1759102259549,2.19390043,4130.5,4130.4,0.00255587]
[1759102261646,2.19390043,4130.5,4129.4,3.5807]
[1759102261647,1.4626,4129.5,4129.4,3.5807]
[1759102261854,1.4626,4129.5,4129.4,4.0164]
[1759102262152,1.4626,4129.5,4129.4,4.5214]
[1759102262542,1.4626,4129.5,4129.4,3.95158078]
[1759102262748,1.4626,4129.5,4129.4,0.00228078]
[1759102262956,6.94672558,4129.5,4129.4,0.00228078]
[1759102263258,7.19372558,4129.5,4129.4,0.00228078]
[1759102263450,7.58516184,4129.5,4129.4,0.00228078]
[1759102265448,1.4626,4128.5,4128.4,4.01651]
[1759102265648,2.33816184,4128.5,4128.4,3.2078]
[1759102266154,1.4626,4128.0,4127.9,4.38516]
[1759102266348,2.33816184,4128.0,4127.9,4.38516]
[1759102266553,2.34098128,4128.0,4127.9,3.21020824]
[1759102267355,2.34098128,4128.0,4127.9,0.00240824]
[1759102269364,7.34098128,4128.0,4127.9,0.00240824]
[1759102270061,7.58798128,4128.0,4127.9,0.00240824]
[1759102271260,0.7167,4127.3,4127.2,0.80884]
[1759102271455,1.4871,4127.3,4127.2,0.80884]
[1759102272158,1.4871,4127.3,4126.8,3.2078]
[1759102272159,0.2273,4127.0,4126.8,3.2078]
[1759102272366,1.5123,4127.0,4126.9,0.79796]
[1759102272560,1.7593,4127.0,4126.9,0.79796]
[1759102272765,0.247,4127.0,4126.9,1.73496]
[1759102272960,0.558,4127.8,4126.9,6.73496]